bitfinex/quotes_ETHUSD_20250726
["timestamp","ask_amount","ask_price","bid_price","bid_amount"]
[1753539097171,3.23447753,3752.0,3751.8,0.001]
[1753539097342,30.0,3751.9,3751.8,0.001]
[1753539097538,30.9239,3751.9,3751.8,0.001]
[1753539097768,0.9239,3751.9,3751.8,0.001]
[1753539098166,39.13974282,3751.9,3751.8,0.001]
[1753539098351,43.06364282,3751.9,3751.8,0.001]
[1753539098741,45.49364282,3751.9,3751.8,0.001]
[1753539099237,15.49364282,3751.9,3751.8,0.001]
[1753539099577,45.49364282,3751.9,3751.8,0.001]
[1753539105384,41.14215606,3751.9,3751.8,0.001]
[1753539105694,40.21925606,3751.9,3751.8,0.001]
[1753539109179,41.18735606,3751.9,3751.8,0.001]
[1753539109668,41.27725929,3751.9,3751.8,0.001]
[1753539109870,11.27725929,3751.9,3751.8,0.001]
[1753539110069,41.27725929,3751.9,3751.8,0.001]
[1753539110970,41.52629764,3751.9,3751.8,0.001]
[1753539111274,34.04825832,3751.7,3751.6,0.001]
[1753539111495,44.67539666,3751.7,3751.6,0.001]
[1753539111778,45.64349666,3751.7,3751.6,0.001]
[1753539111959,45.30455508,3751.7,3751.6,0.001]
[1753539116789,15.30455508,3751.7,3751.6,0.001]
[1753539116973,45.30455508,3751.7,3751.6,0.001]
[1753539117786,15.30455508,3751.7,3751.6,0.001]
[1753539117986,45.30455508,3751.7,3751.6,0.001]
[1753539118367,45.39434694,3751.7,3751.6,1e-08]
[1753539118884,37.00558467,3751.1,3751.0,0.001]
[1753539119089,44.66641126,3751.1,3751.0,0.001]
[1753539119392,45.16551126,3751.1,3751.0,0.001]
[1753539119756,45.63451126,3751.1,3751.0,0.001]
[1753539120275,49.47751126,3751.1,3751.0,0.001]
[1753539120683,0.55,3750.8,3750.2,0.4963]
[1753539120987,44.29406574,3750.7,3750.2,0.001]
[1753539121158,45.26216574,3750.7,3750.2,0.001]
[1753539122654,37.51157898,3750.7,3750.2,0.001]
[1753539122856,37.51157898,3750.7,3750.6,0.9693]
[1753539122857,39.57046898,3750.7,3750.6,0.9693]
[1753539126056,9.57046898,3750.7,3750.6,0.9693]
[1753539126261,39.57046898,3750.7,3750.6,0.9693]
[1753539127183,9.57046898,3750.7,3750.6,0.9693]
[1753539127489,39.57046898,3750.7,3750.6,0.9693]
[1753539127693,33.6836,3750.7,3750.6,0.9693]
[1753539128102,36.1156,3750.7,3750.6,0.9693]
[1753539128289,30.1336,3750.7,3750.6,0.9693]
[1753539128467,32.5656,3750.7,3750.6,1.7827]
[1753539128664,33.1156,3750.7,3750.6,1.7827]
[1753539129315,36.1156,3750.7,3750.6,1.7827]
[1753539129466,39.89861881,3750.7,3750.6,0.001]
[1753539129666,39.56396898,3750.7,3750.6,0.001]
[1753539129973,39.65387944,3750.7,3750.6,0.001]
[1753539131599,39.56396898,3750.7,3750.6,0.001]
[1753539132094,9.56396898,3750.7,3750.6,0.001]
[1753539132299,39.56396898,3750.7,3750.6,0.001]
[1753539132966,33.6836,3750.7,3750.6,0.9422]
[1753539133169,33.1336,3750.7,3750.6,0.9422]
[1753539133364,36.1146,3750.7,3750.6,0.9422]
[1753539133764,35.5646,3750.7,3750.6,0.9422]
[1753539133970,36.1146,3750.7,3750.6,0.9422]
[1753539134366,38.78076898,3750.7,3750.6,0.9422]
[1753539136082,36.1146,3750.7,3750.6,0.9422]
[1753539136609,38.78076898,3750.7,3750.6,0.9422]
[1753539138013,38.78076898,3750.7,3750.6,0.499]
[1753539138209,38.78076898,3750.7,3750.6,0.001]
[1753539139011,39.53946898,3750.7,3750.6,0.001]
[1753539141111,40.10008115,3750.7,3750.6,0.001]
[1753539141411,39.62948115,3750.7,3750.6,0.001]
[1753539142595,39.62948115,3750.7,3750.6,0.499]
[1753539142909,38.78076898,3750.7,3750.6,0.9422]
[1753539143092,38.78076898,3750.7,3750.6,0.001]
[1753539143093,39.25136898,3750.7,3750.6,0.001]
[1753539143488,8.78076898,3750.7,3750.6,0.001]
[1753539143688,38.78076898,3750.7,3750.6,0.001]
[1753539145304,38.8708518,3750.7,3750.6,0.001]
[1753539145894,38.78076898,3750.7,3750.6,0.001]
[1753539146083,40.41022132,3750.7,3750.6,0.001]
[1753539146288,40.85692132,3750.7,3750.6,0.001]
[1753539147311,41.00680304,3750.7,3750.6,0.001]
[1753539148532,40.08950304,3750.7,3750.6,0.001]
[1753539149210,39.93962132,3750.7,3750.6,0.001]
[1753539149416,40.08956813,3750.7,3750.6,0.001]
[1753539151255,40.56016813,3750.7,3750.6,0.001]
[1753539152124,40.08956813,3750.7,3750.6,0.001]
[1753539152629,39.93962132,3750.7,3750.6,0.001]
[1753539152837,2.66702226,3749.5,3749.2,0.001]
[1753539153004,3.21716453,3749.3,3749.2,0.001]
[1753539153208,43.02403066,3749.3,3749.2,0.001]
[1753539153403,36.21730682,3749.1,3749.0,1e-08]
[1753539153639,36.21730682,3749.1,3748.5,0.001]
[1753539153640,36.21759143,3748.7,3748.5,0.001]
[1753539153841,44.13692802,3748.7,3748.5,0.001]
[1753539155126,44.47645334,3748.7,3748.5,0.001]
[1753539155414,44.13692802,3748.7,3748.5,0.001]
[1753539156310,44.91632802,3748.7,3748.5,0.001]
[1753539156510,45.38692802,3748.7,3748.5,0.001]
[1753539157441,45.83362802,3748.7,3748.5,0.001]
[1753539157653,2.66799229,3748.2,3747.9,0.001]
[1753539157873,40.5695764,3748.0,3747.9,0.001]
[1753539158018,40.5695764,3748.0,3747.9,0.499]
[1753539160925,40.5695764,3748.0,3747.9,0.9422]
[1753539161624,40.5695764,3748.0,3747.9,0.499]
[1753539162178,43.0185764,3748.0,3747.9,0.499]
[1753539162866,43.1521764,3748.0,3747.9,0.499]
[1753539163226,13.1521764,3748.0,3747.9,0.001]
[1753539163427,43.1521764,3748.0,3747.9,0.001]
[1753539163967,13.1521764,3748.0,3747.9,0.4742]
[1753539164184,43.1521764,3748.0,3747.9,0.921]
[1753539165781,36.1316,3748.0,3747.9,0.4742]
[1753539165958,36.1316,3748.0,3747.9,0.921]
[1753539167097,38.79968964,3748.0,3747.9,0.921]
[1753539167897,38.79968964,3748.0,3747.9,0.001]
[1753539168395,8.79968964,3748.0,3747.9,0.001]
[1753539168558,38.79968964,3748.0,3747.9,0.001]
[1753539170995,39.73268964,3748.0,3747.9,0.001]
[1753539171654,39.73268964,3748.0,3747.8,0.001]
[1753539171655,2.66816083,3747.9,3747.8,0.001]
[1753539171855,36.21865926,3747.2,3746.8,0.4468]
[1753539172091,43.15074602,3747.2,3746.9,0.4732]
[1753539173061,43.15074602,3747.2,3746.7,0.8025]
[1753539173266,43.15074602,3747.2,3745.2,0.7629]
[1753539173267,3.55,3745.9,3745.2,0.7629]
[1753539173499,0.55,3745.5,3745.3,0.92]
[1753539173698,2.66950127,3746.1,3745.2,3.43297929]
[1753539173699,2.457,3745.4,3745.2,3.43297929]
[1753539173905,2.457,3745.3,3745.2,3.43297929]
[1753539174399,3.0,3746.1,3745.2,3.43297929]
[1753539174400,2.66951903,3746.0,3745.2,4.3529763]
[1753539174602,2.457,3745.9,3745.3,0.92]
[1753539174800,2.457,3745.8,3745.4,0.92]
[1753539174967,2.457,3745.7,3745.3,2.67000986]
[1753539175168,2.457,3745.6,3745.5,0.92]
[1753539175372,2.457,3745.6,3745.2,0.7629]
[1753539175573,2.457,3745.5,3745.2,3.43291992]
[1753539175773,0.55,3746.1,3745.2,3.43291992]
[1753539175982,3.55,3745.9,3745.3,3.59001308]
[1753539176181,0.55,3745.9,3745.4,0.92]
[1753539176400,2.457,3745.8,3745.6,0.7629]
[1753539176605,2.457,3745.8,3745.7,0.92]
[1753539177093,2.457,3745.8,3745.3,1.2361]
[1753539177094,0.55,3745.5,3745.3,1.2361]
[1753539177423,36.008,3745.4,3745.3,0.92]
[1753539177591,38.67794179,3745.4,3745.3,0.92]
[1753539177917,6.008,3745.4,3745.3,0.92]
[1753539178478,8.67794179,3745.4,3745.3,0.92]
[1753539179386,6.008,3745.4,3745.3,0.92]
[1753539179591,6.009,3745.4,3745.3,0.92]
[1753539180579,3.55,3745.4,3745.3,0.92]
[1753539180799,6.008,3745.4,3745.3,0.92]
[1753539181003,8.67794179,3745.4,3745.3,0.4732]
[1753539181177,8.67794179,3745.4,3745.1,0.4732]
[1753539181178,3.22003669,3745.3,3745.1,0.4732]
[1753539181382,2.458,3745.2,3744.9,0.8284]
[1753539181703,2.458,3745.2,3745.1,0.4468]
[1753539182092,3.008,3745.2,3745.1,0.92]
[1753539182300,33.008,3745.2,3745.1,0.92]
[1753539183205,35.81168437,3745.2,3745.1,0.92]
[1753539183401,3.22021689,3745.1,3744.9,0.8284]
[1753539183706,36.1416,3745.0,3744.9,1.3016]
[1753539184006,36.1416,3745.0,3744.9,0.8284]
[1753539184177,3.1336,3745.0,3744.9,0.8284]
[1753539184380,3.1336,3745.0,3744.9,1.3016]
[1753539184582,5.5916,3745.0,3744.9,1.7484]
[1753539184981,5.5916,3745.0,3744.9,4.41869827]
[1753539185181,5.5916,3745.0,3744.9,1.7484]
[1753539185588,2.5916,3745.0,3744.9,4.41869827]
[1753539185796,0.1336,3745.0,3744.9,4.41869827]
[1753539186107,2.5916,3745.0,3744.9,4.41869827]
[1753539186310,2.5906,3745.0,3744.9,4.41869827]
[1753539186810,0.55,3745.6,3744.9,4.41869827]
[1753539187010,0.1336,3745.2,3744.9,3.49869827]
[1753539187319,2.457,3745.1,3745.0,3.59021973]
[1753539188494,0.1336,3745.2,3745.1,3.49205567]
[1753539188719,30.0,3745.5,3745.4,2.66993407]
[1753539188925,2.457,3745.5,3745.4,4.41183407]
[1753539190682,30.1336,3745.7,3745.6,2.66979923]
[1753539190888,32.5916,3745.7,3745.6,2.66979923]
[1753539191095,32.5916,3745.7,3745.6,3.58979923]
[1753539191417,2.5916,3745.7,3745.6,3.58979923]
[1753539191617,2.5916,3745.7,3745.6,0.92]
[1753539193206,0.1336,3745.7,3745.6,3.58979923]
[1753539193430,3.848,3745.8,3745.7,2.66972795]
[1753539193636,3.848,3745.8,3745.7,5.09113611]
[1753539193798,6.305,3745.8,3745.7,5.09113611]
[1753539194442,3.0,3746.9,3745.8,0.7716]
[1753539194731,0.1336,3746.5,3746.3,2.66928782]
[1753539194904,0.1336,3746.5,3746.0,2.80310945]
[1753539194905,0.1336,3746.5,3746.4,3.44082912]
[1753539195103,2.457,3746.5,3746.4,0.7716]
[1753539195419,2.457,3746.5,3746.4,1.6999]
[1753539197449,0.55,3746.2,3746.0,0.1336]
[1753539197598,30.0,3745.9,3745.6,1.2589]
[1753539197800,2.46,3745.8,3745.6,1.2589]
[1753539198401,2.46,3745.8,3745.6,1.2246]
[1753539198924,2.46,3745.8,3745.7,0.4813]
[1753539199312,2.46,3745.8,3745.3,2.67000911]
[1753539199610,2.46,3745.8,3745.4,0.9283]
[1753539199827,2.46,3745.8,3745.4,0.447]
[1753539200037,2.46,3745.8,3745.5,0.9283]
[1753539200343,2.46,3745.8,3745.6,0.4813]
[1753539202925,2.46,3745.8,3745.7,0.4813]
[1753539203518,2.46,3745.8,3745.3,2.67101098]
[1753539203713,2.46,3745.8,3745.4,0.4813]
[1753539203939,2.46,3745.8,3745.4,3.11693559]
[1753539204134,2.46,3745.8,3745.5,0.9283]
[1753539204341,2.46,3745.8,3745.5,2.66984793]
[1753539204555,2.46,3745.8,3745.6,0.9283]
[1753539207544,2.46,3745.8,3745.7,2.66972795]
[1753539207545,2.5936,3745.8,3745.7,2.66972795]
[1753539207843,2.46,3745.8,3745.7,3.59802795]
[1753539208006,2.456,3745.8,3745.7,3.59802795]
[1753539208206,0.1336,3746.0,3745.7,1.7172]
[1753539208445,2.456,3745.9,3745.8,3.78303668]
[1753539208833,0.1356,3746.4,3746.1,2.66939708]
[1753539209041,2.456,3746.3,3746.1,2.66939708]
[1753539209344,2.456,3746.2,3746.1,3.15072652]
[1753539209545,2.456,3746.2,3746.1,3.59772652]
[1753539210411,0.002,3746.4,3746.1,3.59772652]
[1753539210705,0.002,3746.4,3746.1,0.447]
[1753539210706,2.456,3746.3,3746.1,0.447]
[1753539210906,0.002,3746.4,3746.1,0.4813]
[1753539211109,2.455,3746.3,3745.9,0.1336]
[1753539211342,2.455,3746.3,3746.0,0.4813]
[1753539213554,30.0,3746.2,3745.9,0.1336]
[1753539213725,30.4877,3746.2,3745.7,0.1336]
[1753539213917,0.55,3746.0,3745.4,3.49804045]
[1753539214113,0.1336,3745.8,3745.4,0.8281]
[1753539215256,0.1336,3745.8,3745.5,0.4813]
[1753539215752,0.1336,3745.8,3745.4,0.8281]
[1753539216057,0.1336,3745.8,3745.6,0.4813]
[1753539216755,0.1336,3745.8,3745.7,0.9283]
[1753539216973,0.1356,3746.4,3746.0,0.8281]
[1753539217183,2.453,3746.1,3746.0,3.49760659]
[1753539217339,2.453,3746.1,3746.0,0.8281]
[1753539217849,2.453,3746.1,3746.0,1.3094]
[1753539218151,2.453,3746.1,3745.9,0.1336]
[1753539219342,2.453,3746.1,3746.0,0.4813]
[1753539219770,2.453,3746.1,3746.0,0.9283]
[1753539220675,2.453,3746.1,3746.0,3.59781414]
[1753539220876,2.453,3746.1,3746.0,0.9283]
[1753539221172,0.1356,3746.4,3746.0,0.9283]
[1753539221476,2.453,3746.1,3746.0,3.59781414]
[1753539221677,2.453,3746.1,3746.0,3.11651414]
[1753539222177,3.0,3746.3,3746.0,3.11651414]
[1753539222178,0.1356,3746.4,3746.0,3.58061414]
[1753539222362,2.452,3746.1,3746.0,3.11651414]
[1753539222571,2.452,3746.1,3746.0,0.447]
[1753539222953,2.452,3746.1,3746.0,0.9111]
[1753539223156,3.1356,3746.4,3746.0,0.9111]
[1753539223355,2.452,3746.3,3746.0,0.9111]
[1753539223557,2.452,3746.3,3746.0,0.4641]
[1753539223882,5.452,3746.3,3746.0,0.4641]
[1753539224281,2.451,3746.2,3746.0,0.4641]
[1753539225284,2.451,3746.1,3746.0,0.4641]
[1753539226097,2.451,3746.1,3745.9,0.1336]
[1753539226273,2.451,3746.1,3746.0,0.4641]
[1753539226580,2.5846,3746.1,3746.0,0.4641]
[1753539228050,2.451,3746.1,3746.0,0.9356]
[1753539228258,2.451,3746.1,3746.0,3.60511414]
[1753539228582,0.1356,3746.4,3746.0,0.9356]
[1753539228877,0.1356,3746.4,3746.2,2.66935945]
[1753539229085,2.451,3746.3,3746.2,2.66935945]
[1753539229279,2.451,3746.3,3746.1,2.66943037]
[1753539229493,2.451,3746.3,3746.2,0.4641]
[1753539231371,2.451,3746.3,3746.2,3.13347162]
[1753539232682,2.451,3746.3,3746.2,0.4641]
[1753539232884,2.451,3746.3,3746.2,3.13347162]
[1753539233896,2.451,3746.3,3746.2,0.4641]
[1753539235392,2.451,3746.3,3746.0,3.1335944]
[1753539236597,2.451,3746.3,3746.0,2.6694944]
[1753539237598,2.451,3746.3,3746.1,2.66943005]
[1753539238695,2.451,3746.3,3746.0,2.66949657]
[1753539238896,2.451,3746.3,3746.1,0.4641]
[1753539239271,2.451,3746.3,3746.0,3.60509657]
[1753539239570,2.451,3746.3,3746.1,0.4641]
[1753539239970,2.451,3746.3,3746.0,3.14099657]
[1753539240170,2.451,3746.3,3746.0,3.60509657]
[1753539240701,2.451,3746.3,3746.0,3.13359657]
[1753539241696,2.451,3746.3,3745.9,2.80316673]
[1753539242082,2.451,3746.3,3745.9,3.26726673]
[1753539242702,2.451,3746.3,3746.0,0.4641]
[1753539242906,2.451,3746.3,3746.0,3.13359712]
[1753539243202,2.451,3746.3,3746.1,2.66943339]
[1753539243398,2.451,3746.3,3746.1,3.13353339]
[1753539243586,0.1356,3746.4,3746.2,3.13347022]
[1753539243769,2.446,3746.3,3746.2,2.66937022]
[1753539244199,0.1356,3746.4,3746.1,2.66943608]
[1753539244406,2.445,3746.3,3746.1,3.14093608]
[1753539244604,2.445,3746.3,3746.2,0.4641]
[1753539247314,2.444,3746.3,3746.2,0.4641]
[1753539247488,2.444,3746.3,3746.2,3.13347162]
[1753539248199,0.1356,3746.4,3746.2,0.4641]
[1753539248404,2.444,3746.3,3746.2,0.4641]
[1753539248881,2.444,3746.3,3746.2,3.13347162]
[1753539249486,0.1356,3746.4,3746.3,2.66930037]
[1753539249777,2.445,3746.4,3746.3,3.60490037]
[1753539250118,0.002,3746.4,3746.3,3.60490037]
[1753539250679,0.002,3746.4,3746.3,4.3276629]
[1753539262833,0.002,3746.4,3746.3,5.1273559]
[1753539263245,0.002,3746.4,3746.3,7.5673559]
[1753539263451,0.002,3746.4,3746.3,7.5406629]
[1753539264161,0.002,3746.4,3746.3,11.89772639]
[1753539265329,1e-08,3746.4,3746.3,11.89772639]
[1753539267011,1e-08,3746.4,3746.3,7.5406629]
[1753539268142,1e-08,3746.4,3746.3,7.5416629]
[1753539268643,1e-08,3746.4,3746.3,7.5406629]
[1753539269789,30.0,3746.3,3743.4,0.1336]
[1753539270056,30.0,3744.6,3743.4,0.1336]
[1753539270264,35.19272456,3744.6,3743.5,2.69800489]
[1753539270467,35.19272456,3744.6,3743.7,2.67114773]
[1753539270784,36.12682456,3744.6,3743.6,0.1336]
[1753539270957,36.93342456,3744.6,3743.6,0.1336]
[1753539271895,35.0948122,3744.6,3743.6,0.1336]
[1753539272081,35.0948122,3744.6,3743.6,2.80481481]
[1753539272395,35.0948122,3744.6,3743.7,2.67113186]
[1753539272544,35.0948122,3744.6,3743.8,2.67305715]
[1753539272944,35.0948122,3744.6,3743.8,0.002]
[1753539272945,32.4243,3744.6,3743.8,0.002]
[1753539273188,32.4243,3744.6,3743.8,2.80667282]
[1753539273560,35.0948122,3744.6,3743.8,2.80667282]
[1753539273773,35.0948122,3744.6,3743.8,0.1356]
[1753539274087,32.4243,3744.6,3743.8,0.1356]
[1753539274288,32.4243,3744.6,3743.9,2.67099629]
[1753539274450,35.4243,3744.6,3743.8,0.1356]
[1753539274779,35.4243,3744.6,3743.8,2.80667369]
[1753539274944,35.4243,3744.6,3743.9,2.67099229]
[1753539275145,35.4243,3744.6,3744.0,2.67091945]
[1753539275678,34.4902,3744.6,3744.0,2.67091945]
[1753539275861,0.4861,3744.9,3744.3,2.67071359]
[1753539276063,0.1336,3744.9,3744.4,0.1336]
[1753539276275,0.1336,3744.9,3744.7,2.67044088]
[1753539276501,0.1336,3744.9,3744.8,3.10086957]
[1753539276647,2.6306,3745.7,3744.8,1.06820369]
[1753539276844,3.70591658,3745.6,3745.1,0.1336]
[1753539277095,0.1336,3745.4,3744.9,0.1336]
[1753539277355,0.9341,3745.3,3744.6,0.7582]
[1753539277559,0.1336,3745.1,3744.7,2.67042728]
[1753539277778,0.1336,3745.1,3744.7,2.67043755]
[1753539277944,0.4861,3745.0,3744.7,2.67043755]
[1753539278372,0.4861,3745.0,3744.6,0.1336]
[1753539278567,0.4861,3745.0,3744.8,2.67033829]
[1753539278769,0.1336,3745.1,3744.9,2.67029624]
[1753539279382,0.1336,3745.1,3745.0,2.67022696]
[1753539279676,0.1336,3745.1,3744.9,2.67024464]
[1753539279853,0.1336,3745.1,3745.0,2.67022696]
[1753539281057,3.1167,3745.5,3745.1,2.67015567]
[1753539281576,0.1336,3745.5,3745.2,2.67007661]
[1753539281780,2.6306,3745.5,3745.2,2.67007661]
[1753539282181,3.0887,3745.5,3745.2,2.67007661]
[1753539282601,3.0887,3745.5,3745.1,0.9079]
[1753539282751,2.6306,3745.5,3745.2,3.10411422]
[1753539282949,0.1336,3745.5,3745.2,3.58781422]
[1753539283261,0.1336,3745.5,3745.2,3.10411422]
[1753539283769,0.1336,3745.5,3745.3,2.67000661]
[1753539284080,0.1336,3745.5,3745.2,0.4341]
[1753539284287,0.1336,3745.5,3745.4,2.66994179]
[1753539284661,0.1336,3745.5,3745.3,2.66999512]
[1753539285155,0.1336,3745.5,3745.4,2.66994179]
[1753539285364,0.4581,3746.0,3745.4,0.4341]
[1753539285565,2.6276,3745.9,3745.7,2.66967189]
[1753539285770,2.6276,3745.9,3745.4,1.0514]
[1753539285771,0.7892,3746.6,3746.1,2.66944288]
[1753539285973,0.13360001,3746.4,3745.8,1.0514]
[1753539286483,1.20028397,3746.4,3745.8,0.5677]
[1753539286688,0.74218397,3746.4,3745.9,2.66958541]
[1753539286888,0.4581,3746.3,3745.9,2.66958541]
[1753539287100,0.4581,3746.2,3745.9,2.66958541]
[1753539288198,0.4581,3746.1,3745.8,0.1336]
[1753539288497,0.4581,3746.1,3745.9,2.66958103]
[1753539288899,0.13360001,3746.4,3745.9,2.66958103]
[1753539289101,0.4581,3746.0,3745.9,2.66958103]
[1753539289796,0.4581,3746.2,3745.9,2.66958103]
[1753539290094,0.13360001,3746.4,3746.1,2.66944288]
[1753539290268,0.002,3746.2,3746.1,2.66944288]
[1753539290865,0.002,3746.2,3746.0,2.66951028]
[1753539291396,0.002,3746.2,3746.1,2.66944288]
[1753539292395,0.002,3746.2,3746.0,2.66950333]
[1753539292778,0.002,3746.2,3746.1,2.66944288]
[1753539298102,0.002,3746.2,3746.1,3.10354288]
[1753539298305,0.002,3746.2,3746.1,3.58724288]
[1753539298507,1.2474,3746.2,3745.8,0.1336]
[1753539298704,0.7873,3745.5,3744.5,0.9188]
[1753539298908,30.0,3745.2,3744.6,3.5883122]
[1753539299077,30.0,3745.2,3744.7,2.67038588]
[1753539299274,30.0,3745.2,3744.7,3.58818588]
[1753539299473,0.4581,3745.1,3744.7,3.58818588]
[1753539299889,0.4581,3745.1,3744.7,3.10448588]
[1753539300287,0.4581,3745.1,3744.8,2.67036488]
[1753539300488,0.4581,3745.1,3744.9,2.67027941]
[1753539300687,30.0,3745.2,3744.9,2.67027941]
[1753539300986,30.4581,3745.2,3744.9,2.67027941]
[1753539301184,2.5,3745.4,3744.7,0.9178]
[1753539301384,2.499,3745.4,3745.1,2.67014585]
[1753539301584,2.499,3745.4,3745.2,2.67007763]
[1753539301785,2.499,3745.4,3745.3,2.67001308]
[1753539302780,3.0,3745.6,3745.3,2.67001308]
[1753539302781,2.499,3745.6,3745.3,3.5878099]
[1753539302974,2.499,3745.6,3745.5,2.66981425]
[1753539303592,2.499,3745.6,3745.5,3.10391425]
[1753539303792,2.499,3745.6,3745.5,3.58761425]
[1753539304016,2.498,3745.8,3745.6,2.66979923]
[1753539304308,2.498,3745.8,3745.7,3.10382795]
[1753539304918,2.497,3745.9,3745.8,2.66965668]
[1753539305214,2.499,3746.2,3746.1,2.66944288]
[1753539305585,2.499,3746.2,3746.0,2.66949601]
[1753539305780,2.9571,3746.2,3745.9,2.66957189]
[1753539306086,2.499,3746.2,3745.9,2.66957189]
[1753539306416,0.4581,3746.1,3745.9,2.66957189]
[1753539307112,0.002,3746.2,3746.0,2.66951414]
[1753539307782,0.002,3746.2,3746.1,2.66944288]
[1753539308515,0.002,3746.2,3746.1,3.10354288]
[1753539310888,0.002,3746.2,3746.1,3.58724288]
[1753539311181,0.002,3746.2,3746.1,2.66944288]
[1753539311389,0.002,3746.2,3746.1,3.58724288]
[1753539311996,0.002,3746.2,3746.1,4.22628493]
[1753539312209,0.002,3746.2,3746.1,4.35988493]
[1753539314395,0.002,3746.2,3746.1,3.72084288]
[1753539314598,0.002,3746.2,3746.1,2.80304288]
[1753539314791,0.471,3746.2,3746.1,2.66944288]
[1753539315198,0.471,3746.2,3746.0,2.8031026]
[1753539315403,0.002,3746.2,3746.0,2.6695026]
[1753539315721,0.469,3746.1,3746.0,2.6695026]
[1753539317730,0.002,3746.2,3746.1,2.66944288]
[1753539318084,0.471,3746.2,3746.1,2.66944288]
[1753539318287,0.471,3746.2,3746.0,2.66949394]
[1753539318521,0.002,3746.2,3746.0,2.66949394]
[1753539318734,0.469,3746.1,3746.0,2.66949394]
[1753539319029,0.002,3746.2,3746.1,2.66944288]
[1753539321125,0.002,3746.2,3745.9,0.1336]
[1753539321126,0.471,3746.2,3745.9,0.1336]
[1753539321307,0.469,3746.1,3745.9,2.80313502]
[1753539321623,0.002,3746.2,3745.6,2.66979923]
[1753539321931,0.469,3746.0,3745.9,2.66958141]
[1753539322294,0.469,3746.0,3745.1,0.804]
[1753539322503,0.1336,3745.9,3745.6,2.6697934]
[1753539322725,0.469,3745.8,3745.6,2.6697934]
[1753539322930,0.1336,3745.9,3745.6,2.6697934]
[1753539323217,0.469,3745.7,3745.6,2.66979923]
[1753539325343,3.1336,3745.9,3745.4,2.66994033]
[1753539325555,0.8223,3745.5,3744.5,0.001]
[1753539325729,0.1336,3745.3,3744.8,2.80391991]
[1753539325908,3.1336,3745.3,3744.8,2.80391991]
[1753539326110,0.469,3745.2,3744.9,2.67029282]
[1753539326455,0.469,3745.1,3744.9,2.67024407]
[1753539326612,0.469,3745.2,3745.0,2.67022696]
[1753539327069,0.469,3745.2,3744.9,2.67028708]
[1753539327352,0.469,3745.1,3744.9,2.67028708]
[1753539327920,0.469,3745.1,3744.8,2.6703066]
[1753539328351,0.469,3745.0,3744.5,0.4639]
[1753539328510,0.469,3745.0,3744.6,0.1336]
[1753539328712,0.469,3745.0,3744.7,2.67041771]
[1753539329030,0.469,3744.9,3744.7,2.67043168]
[1753539329340,0.1336,3744.9,3744.8,2.67036957]
[1753539329910,0.1336,3744.9,3744.7,2.6704327]
[1753539330110,0.6026,3744.9,3744.7,2.6704327]
[1753539330731,0.6026,3744.9,3744.6,2.6705009]
[1753539330941,0.469,3744.8,3744.7,2.67044088]
[1753539331641,0.469,3744.8,3744.6,2.67050567]
[1753539331834,1.2601,3744.8,3744.6,2.67050567]
[1753539332032,1.2601,3744.8,3744.7,2.67044088]
[1753539332245,0.1336,3744.9,3744.8,2.67036957]
[1753539332444,0.1336,3744.9,3744.7,2.67042305]
[1753539333639,0.1336,3744.9,3744.6,0.4619]
[1753539333640,0.1336,3744.9,3744.8,2.67036957]
[1753539334040,0.1336,3744.9,3744.6,0.4619]
[1753539334041,0.1336,3744.9,3744.7,2.67042684]
[1753539334259,0.1336,3744.9,3744.8,2.67036957]
[1753539334459,0.1336,3744.9,3744.7,2.6704372]
[1753539335629,0.6026,3744.9,3744.6,3.1324033]
[1753539335829,0.1336,3744.9,3744.6,2.6705033]
[1753539336028,0.469,3744.8,3744.6,2.6705033]
[1753539336259,0.1336,3744.9,3744.6,2.6705033]
[1753539336260,0.1336,3744.9,3744.7,0.4619]
[1753539336461,1.2937,3745.7,3744.8,0.807]
[1753539336663,0.1336,3745.5,3745.1,2.67009256]
[1753539336966,0.1336,3745.5,3745.0,2.80381655]
[1753539337647,3.1336,3745.5,3745.2,2.67004557]
[1753539337857,3.6026,3745.5,3745.3,2.66994609]
[1753539338559,3.1336,3745.5,3745.4,2.66994179]
[1753539339041,3.1336,3745.5,3745.3,2.66999756]
[1753539339728,3.1336,3745.5,3745.2,0.4619]
[1753539339729,0.7673,3746.0,3745.4,0.9248]
[1753539339944,0.1336,3745.7,3745.5,2.66987051]
[1753539340132,0.1336,3745.7,3745.5,2.6698115]
[1753539340327,2.48,3745.6,3745.5,3.5946115]
[1753539340936,2.48,3745.6,3745.5,3.1317115]
[1753539341334,2.48,3745.6,3745.4,2.66994131]
[1753539341535,2.48,3745.6,3745.4,3.13184131]
[1753539341765,2.48,3745.6,3745.3,0.4629]
[1753539341766,2.48,3745.6,3745.3,2.66998892]
[1753539341946,2.949,3745.6,3745.3,2.66998892]
[1753539342354,2.949,3745.6,3745.4,2.6699397]
[1753539343138,2.949,3745.6,3745.3,2.6700125]
[1753539343478,0.6016,3745.5,3745.3,2.66999977]
[1753539344440,0.1336,3745.5,3745.4,2.66994179]
[1753539344961,0.6016,3745.5,3745.2,2.6700752]
[1753539345163,0.468,3745.4,3745.2,2.6700752]
[1753539346646,0.1336,3745.5,3745.3,2.67001308]
[1753539347084,0.6016,3745.5,3745.3,2.67001308]
[1753539347785,0.1336,3745.5,3745.4,0.445]
[1753539347957,0.1336,3745.5,3745.4,3.60944179]
[1753539348159,2.6086,3745.5,3745.4,3.60944179]
[1753539348357,0.1336,3745.5,3745.4,3.60944179]